Workbook

Sheet Input Sheet
F3: Name of Broker Firm | H3: Broker Name
F5: Name of Client | H5: Client name
A9: Total Number of Employees | D9: 200 | H9: Percentage of VB Commission to Broker | I9: 0.3
A10: Total Number of Eligible Employees | D10: 200 | H10: Total Revenue to Broker from VB Plans | I10: 0
A13: Core Plans from Broker | B13: 2019 Enrolled | C13: 2019 Annual Premium | D13: Product Commission Percentage | F13: VB Products | G13: 2019 Enrolled | H13: 2019 Annual Premium | I13: VB Product Commission Percentage
A14: Medical | B14: 90 | C14: 600000 | D14: 0.05 | F14: Accident | G14: 25 | H14: 20000 | I14: 0.15
A15: Dental | B15: 90 | C15: 180000 | D15: 0.1 | F15: Critical Illness | G15: 0 | H15: 0
A16: Vision | B16: 90 | C16: 30000 | D16: 0.1 | F16: Hospital Indemnity | G16: 0 | H16: 0
A17: Group Life | D17: 0.15
A18: Supplemental Life | D18: 0.15 | F18: Permanent Life | G18: 0 | H18: 0
A19: STD | D19: 0.15 | F19: Pet Insurance | G19: 0
A20: LTD | D20: 0.15 | F20: Cancer
D21: 0.15
D22: 0.15
A23: Total Premium | C23: =SUM(C14:C22) -> 810000 | F23: Total Premium | H23: =SUM(H14:H22) -> 20000

Sheet Calculator (hidden)
D2: Revenue Growth Calculator | I2: Name of Broker Firm: | J2: ='Input Sheet'!H3 -> Broker Name
D3: Revenue Growth Estimates from Improved Engagement in Enrollment | I3: Client: | J3: ='Input Sheet'!H5 -> Client name
I4: Date: | J4: =TODAY() -> 2020-08-22
I5: Engagement Summary | K5: Total
I6: Total Eligible | K6: ='Input Sheet'!D10 -> 200
I7: Total Engagement | K7: =K6*K8 -> 180
J8: OE Engagement | K8: 0.9
A10: Core Plans from Broker | B10: 2020 Enrolled | C10: 2020 Annual Premium | D10: 2021 Enrollment projection | E10: Percent Change | F10: Participation | G10: 2021 Annual Premium | H10: 2020 Broker Commision - Actual | I10: 2021 Broker Commission Estimated | J10: Product Commission Percentage | K10: 1st yr VB Commission Percentage
A11: Medical | B11: ='Input Sheet'!B14 -> 90 | C11: ='Input Sheet'!C14 -> 600000 | D11: =B11*(1+E11) -> 99 | E11: 0.1 | F11: =D11/$K$6 -> 0.495 | G11: =C11*(1+E11) -> 660000 | H11: =(C11*J11) -> 30000 | I11: =(G11*J11) -> 33000 | J11: ='Input Sheet'!D14 -> 0.05 | K11: NA
A12: Dental | B12: ='Input Sheet'!B15 -> 90 | C12: ='Input Sheet'!C15 -> 180000 | D12: =B12*(1+E12) -> 99 | E12: 0.1 | F12: =D12/$K$6 -> 0.495 | G12: =C12*(1+E12) -> 198000 | H12: =(C12*J12) -> 18000 | I12: 19800 | J12: ='Input Sheet'!D15 -> 0.1 | K12: NA
A13: Vision | B13: ='Input Sheet'!B16 -> 90 | C13: ='Input Sheet'!C16 -> 30000 | D13: 99 | E13: 0.1 | F13: =D13/$K$6 -> 0.495 | G13: 33000 | H13: =(C13*J13) -> 3000 | I13: 3300 | J13: ='Input Sheet'!D16 -> 0.1 | K13: NA
A14: Group Life | B14: ='Input Sheet'!B18 -> 0 | C14: ='Input Sheet'!C18 -> 0 | D14: 0 | E14: 0.1 | F14: =D14/$K$6 -> 0 | G14: 0 | H14: =(C14*J14) -> 0 | I14: 0 | J14: ='Input Sheet'!D17 -> 0.15 | K14: 0
A15: Supplemental Life | B15: ='Input Sheet'!B19 -> 0 | C15: ='Input Sheet'!C19 -> 0 | D15: 0 | E15: 0.1 | F15: 0 | G15: 0 | H15: 0 | I15: 0 | J15: ='Input Sheet'!D18 -> 0.15 | K15: 0
A16: STD | B16: ='Input Sheet'!B19 -> 0 | C16: ='Input Sheet'!C19 -> 0 | D16: 0 | E16: 0.1 | F16: 0 | G16: 0 | H16: 0 | I16: 0 | J16: ='Input Sheet'!D19 -> 0.15 | K16: 0
A17: LTD | B17: ='Input Sheet'!B20 -> 0 | C17: ='Input Sheet'!C20 -> 0 | D17: 0 | E17: 0.1 | F17: 0 | G17: 0 | H17: 0 | I17: 0 | J17: ='Input Sheet'!D20 -> 0.15 | K17: 0
A18: Total Premium | C18: =SUM(C11:C17) -> 810000 | G18: =SUM(G11:G17) -> 891000
G19: Total Core Plans Revenue | H19: =SUM(H11:H17) -> 51000 | I19: =SUM(I11:I17) -> 56100
G20: Total VB Plans Revenue | H20: ='Input Sheet'!H23*'Input Sheet'!I14*'Input Sheet'!I9 -> 900 | I20: =I33 -> 16560 | J20: Estimated Revenue Growth
G21: Other Revenue | H21: =C39 -> 0 | I21: =D39 -> 0
G22: Total Revenue | H22: =SUM(H19:H21) -> 51900 | I22: =SUM(I19:I21) -> 72660 | K22: =I22/H22-1 -> 0.4 | M22: Revenue Increase | O22: =I22-H22 -> 20760
A24: VB Products from Reeser Group | B24: 2020 Enrolled | C24: 2020 Annual Premium | D24: 2021 Enrolled W/Assistance | E24: Percent Change | F24: Participation | G24: Annual Premium | H24: 2020 VB Commision - Actual | I24: 2021 Broker Commission Estimated | J24: 1st yr VB Commission Percentage | K24: Enroller Revenue
A25: Accident | B25: ='Input Sheet'!G14 -> 25 | C25: ='Input Sheet'!H14 -> 20000 | D25: =B25*(1+E25) -> 28.75 | E25: 0.15 | F25: =D25/$K$6 -> 0.14375 | G25: =$C$25*(1+E25) -> 23000 | I25: =G25*J25*$J$33 -> 4140 | J25: 0.6 | K25: =G25*J25*(1-$J$33) -> 9660
A26: Critical Illness | B26: ='Input Sheet'!G15 -> 0 | C26: ='Input Sheet'!H15 -> 0 | D26: =$B$25*(1+E26) -> 28.75 | E26: 0.15 | F26: =D26/$K$6 -> 0.14375 | G26: =$C$25*(1+E26) -> 23000 | I26: 4140 | J26: 0.6 | K26: =G26*J26*(1-$J$33) -> 9660
A27: Hospital Indemnity | B27: ='Input Sheet'!G16 -> 0 | C27: ='Input Sheet'!H16 -> 0 | D27: =$B$25*(1+E27) -> 28.75 | E27: 0.15 | F27: =D27/$K$6 -> 0.14375 | G27: 23000 | I27: 4140 | J27: 0.6 | K27: 9660
A28: Permanent Life | B28: ='Input Sheet'!G18 -> 0 | C28: ='Input Sheet'!H18 -> 0 | D28: 28.75 | E28: 0.15 | F28: =D28/$K$6 -> 0.14375 | G28: 23000 | I28: 3450 | J28: 0.5 | K28: 8050
A29: Pet Insurance | B29: ='Input Sheet'!G19 -> 0 | C29: ='Input Sheet'!H19 -> 0 | D29: 28.75 | E29: 0.15 | F29: =D29/$K$6 -> 0.14375 | G29: 23000 | I29: 690 | J29: 0.1 | K29: 1610
A30: Cancer | B30: ='Input Sheet'!G20 -> 0 | C30: ='Input Sheet'!H20 -> 0 | I30: 0 | J30: 0.6 | K30: 0
B31: ='Input Sheet'!G21 -> 0 | C31: ='Input Sheet'!H21 -> 0 | I31: 0 | J31: 0.6 | K31: 0
A32: Total Premium | C32: =SUM(C25:C31) -> 20000 | G32: =SUM(G25:G29) -> 115000 | J32: Split
G33: Total VB Plans Revenue | H33: 4000 | I33: =SUM(I25:I31) -> 16560 | J33: ='Input Sheet'!I9 -> 0.3 | K33: =SUM(K25:K31) -> 38640
B35: Additional Sources of revenue | C35: 2020 Actual | D35: 2021 Projected | J35: Enroller Expenses
B36: Technology Payments | J36: Implementation Fees | K36: 3000
B37: Other | J37: OE Call Center Fees | K37: 0
J38: Development Costs | K38: 0
B39: Total | C39: =SUM(C36:C38) -> 0 | D39: =SUM(D36:D38) -> 0 | J39: Enroller Estimated NET Annual Comp | K39: =(K33-K36-K37-K38) -> 35640

Sheet Growth Estimate
P7: =Calculator!J4 -> 2020-08-22
E13: ='Input Sheet'!H3 -> Broker Name | P13: =Calculator!O22 -> 20760
C17: =spellnumberEDP(P13) -> Twenty Thousand Seven Hundred Sixty Dollars and No Cents
D22: =CONCATENATE("Increase in Revenue from",Calculator!J3) -> Increase in Revenue fromClient name
